Cogmind - Beta 17 @@@ ROGUE MODE // 2026.06.23 @ 16:43:42 Player: beans Result: Destroyed by G-50 Soldier with Heavy Laser Performance ------------- Evolutions (4) 2000 Regions Visited (14) 2800 Robots Destroyed (163) 815 Value Destroyed (4321) 4321 Prototype IDs (36) 720 Alien Tech Used (0) 0 Bonus (1233) 1233 TOTAL SCORE: 11889 Bonus ------- High Alert Combat Kills 88 Follower Combat Kills 227 Entered DSFs 500 Aligned with FarCom 300 Met Imprinter 300 Acquired ECA 300 Friendly Fire -482 Cogmind --------- Core Integrity 0/850 Matter 220/300 Energy 85/100 System Corruption 34% Temperature Cool (10) Movement Flying (40) Location -5/Proximity Caves Parts ------- > --- POWER (1) -------- (None) > --- PROPULSION (3) --- Xenon Bombardment Thruster > --- UTILITY (8) ------ Coolant Injector Improved Sensor Array Makeshift Salvage Targeting Computer Reaction Control System > --- WEAPON (3) ------- Lance > --- INVENTORY (5) ---- EM Disruption Field Improved Hacking Suite Gauss Rifle Lance Fire Trap Peak State ------------ > --- POWER ------------ Reinforced Fission Core > --- PROPULSION ------- Advanced Myomer Leg Advanced Myomer Leg > --- UTILITY ---------- Medium Storage Unit Advanced Weapon Cycler 8R-AWN's Armor/EX AS-neutralizer No. 17b > --- WEAPON ----------- 8R-AWN's Boregun 8R-AWN's Boregun > --- INVENTORY -------- Experimental Heat Sink High-capacity Matter Pod Gravity Neutralizer Thief Drone Bay Firepult [Rating: 90] Favorites ----------- Power Reinforced Fission Core Engine Light Ion Engine Power Core Reinforced Fission Core Reactor Antimatter Reactor Propulsion Advanced Myomer Leg Treads Light Treads Leg Advanced Myomer Leg Wheel Compact Wheel Hover Unit Cooled Airjet Flight Unit Xenon Bombardment Thruster Utility Medium Storage Unit Device Experimental Heat Sink Storage Medium Storage Unit Processor Improved Targeting Computer Protection Improved Medium Armor Plating Weapon Gauss Rifle Energy Gun Small Laser Energy Cannon Proton Cannon Ballistic Gun Gauss Rifle Ballistic Cannon Gauss Cannon Launcher Rocket Array Slashing Weapon Makeshift Sword Piercing Weapon Lance Build | -11 -10 -10 -10 -9 -8 -7 -7 -7 -7 -6 -6 -6 -6 -5 ------- Run | Yrd Mat Min Exi Min Mat Fac Was Fac DSF Fac Low Low Zio Pro Slots Evolved 8 | . . . . . 4 2 . . . 2 . . . . Power . | . . . . . . . . . . . . . . . Propulsion 1 | . . . . . . 1 . . . . . . . . Utility 6 | . . . . . 4 . . . . 2 . . . . Weapon 1 | . . . . . . 1 . . . . . . . . Parts Attached 87 | 5 6 3 11 1 5 10 4 . 5 11 4 . 17 5 Power 4 | 1 . . 1 . . . 1 . . . . . 1 . Engine 2 | 1 . . . . . . . . . . . . 1 . Core 1 | . . . 1 . . . . . . . . . . . Reactor 1 | . . . . . . . 1 . . . . . . . Propulsion 22 | 2 3 1 2 . . 3 . . . 1 1 . 8 1 Treads 6 | 2 1 . . . . . . . . . . . 3 . Leg 11 | . . . 2 . . 2 . . . 1 1 . 5 . Wheel 1 | . . 1 . . . . . . . . . . . . Hover 1 | . . . . . . 1 . . . . . . . . Flight 3 | . 2 . . . . . . . . . . . . 1 Utility 31 | . 1 1 4 1 3 3 2 . . 7 2 . 4 3 Device 20 | . 1 1 3 1 . 1 2 . . 5 1 . 3 2 Storage 3 | . . . 1 . 1 . . . . 1 . . . . Processor 3 | . . . . . . 1 . . . 1 . . . 1 Hackware . | . . . . . . . . . . . . . . . Protection 5 | . . . . . 2 1 . . . . 1 . 1 . Artifact . | . . . . . . . . . . . . . . . Weapon 30 | 2 2 1 4 . 2 4 1 . 5 3 1 . 4 1 Energy Gun 4 | . 2 1 . . . . 1 . . . . . . . Energy Cannon 2 | . . . 1 . . . . . . . . . 1 . Ballistic Gun 17 | 2 . . 3 . 2 3 . . 2 3 1 . 1 . Ballistic Cannon 3 | . . . . . . . . . 3 . . . . . Launcher 1 | . . . . . . 1 . . . . . . . . Special Weapon . | . . . . . . . . . . . . . . . Impact Weapon . | . . . . . . . . . . . . . . . Slashing Weapon 2 | . . . . . . . . . . . . . 2 . Piercing Weapon 1 | . . . . . . . . . . . . . . 1 Special Melee Weapon . | . . . . . . . . . . . . . . . Unidentified Prototypes 12 | . . 1 5 . 2 2 1 . . . . . 1 . Corrupted Parts 1 | . . . . . . . . . . . . . 1 . System Corruption 1 | . . . . . . . . . . . . . 1 . Parts Lost 44 | . 2 2 2 . . 3 . . . 5 2 1 27 . Power 4 | . . 1 . . . . . . . 1 . . 2 . Propulsion 13 | . 1 1 2 . . 1 . . . . . 1 7 . Utility 17 | . . . . . . 1 . . . 3 2 . 11 . Weapon 10 | . 1 . . . . 1 . . . 1 . . 7 . Highest Loss Streak 11 | . 2 2 2 . . 1 . . . 2 2 1 11 . To Critical Strikes 3 | . . . 1 . . . . . . . . 1 1 . Average Backups 5 | . 3 5 4 6 5 6 7 6 7 6 6 4 6 3 Power . | . . . . . . . . 1 1 . . . . . Propulsion . | . 1 2 1 . . . . . . . . . . . Utility 1 | . . . . 5 2 2 3 2 2 2 1 . 2 1 Weapon 3 | . 2 3 2 1 2 4 3 3 4 4 4 2 3 1 Tool/Special . | . . . . . . . . . . . . . . . Unused Backups 11 | . . 1 2 1 2 . . . . . 1 . 1 3 Power . | . . . . . . . . . . . . . . . Propulsion 2 | . . 1 1 . . . . . . . . . . . Utility 3 | . . . . . . . . . . . 1 . . 2 Weapon 6 | . . . 1 1 2 . . . . . . . 1 1 Tool/Special . | . . . . . . . . . . . . . . . Average Slot Usage (%) 86 | . 79 79 84 100 96 95 85 85 91 91 99 94 83 30 Engine 1 | . 14 3 . . . . . . . . . . . . Core 4 | . . . 6 14 9 7 6 . . 3 6 6 4 . Treads 3 | . 18 17 7 . . . . . . . . . 2 . Leg 13 | . . . 11 28 18 20 15 15 14 14 20 14 14 . Wheel 1 | . . 8 7 . . . . . . . . . . . Device 24 | . 11 19 26 14 27 21 18 23 23 28 28 33 26 13 Storage 10 | . . . 1 14 17 15 15 15 15 14 16 12 12 . Processor 3 | . . . . . . 5 3 . . 4 6 6 4 4 Protection 1 | . . . . . 6 2 7 7 7 1 . . 1 . Energy Gun 3 | . 16 28 9 . . . . . . . . . . . Ballistic Gun 14 | . 10 . 11 28 17 21 16 16 8 16 20 18 14 . Peak Build Rating 90 | 5 6 12 58 59 90 70 79 73 70 78 82 82 76 26 Average Rating 55 | 3 5 8 30 56 69 66 72 64 68 73 78 72 62 20 On Entrance 46 | . 5 6 12 56 55 62 62 74 64 70 76 82 68 4 Avg Prop Armor Cover (%) 15 | . . 14 12 . . . . . . . . . 31 . Naked Turns . | . . . . . . . . . . . . . . . Heaviest Build 65 | 5 6 7 49 49 54 52 57 46 61 63 63 65 63 6 Greatest Support 84 | 40 40 40 72 72 72 82 60 60 60 75 80 80 84 6 Greatest Overweight (x) 8 | . 1 . 8 . . . . . 1 1 . 2 8 . Average Overweight (x) . | . . . . . . . . . . . . . . . Largest Inventory Capacity 10 | 5 5 5 10 10 10 10 10 10 10 10 10 10 10 5 Average Capacity 8 | 5 5 5 5 10 10 10 10 10 10 10 10 10 9 5 Most Carried 10 | 5 5 5 10 10 10 10 10 10 10 10 10 10 10 5 Average Carried 7 | . 3 4 5 9 8 9 9 9 10 9 9 6 8 3 Final Capacity 10 | 5 5 5 10 10 10 10 10 10 10 10 10 10 5 5 Final Carried 10 | . 5 5 10 10 10 10 10 10 10 10 10 6 2 5 Class Distribution -------------------- 33% | Mutant 31% | Scavenger-Gunner 14% | Gunner 8% | Tank 6% | Scavenger-Mutant 3% | Derelict-Mutant Dominant Class ---------------- Mutant | -10/Materials Mutant | -10/Mines Mutant | -10/Exiles Mutant | -9/Mines Mutant | -8/Materials Gunner | -7/Factory Mutant | -7/Waste Mutant | -7/Factory Tank | -7/DSF Gunner | -6/Factory Scavenger-Gunner | -6/Lower Caves Scavenger-Gunner | -6/Lower Caves Scavenger-Gunner | -6/Zion Derelict-Mutant | -5/Proximity Caves Resources | -11 -10 -10 -10 -9 -8 -7 -7 -7 -7 -6 -6 -6 -6 -5 ----------- Run | Yrd Mat Min Exi Min Mat Fac Was Fac DSF Fac Low Low Zio Pro Matter Collected 6586 | 183 194 10 349 122 426 1598 708 . 725 1057 202 281 594 137 Remotely 6 | . . . . . . . . . . 6 . . . . Salvage Created 8131 | . 421 153 199 144 587 2098 1826 . 463 1080 196 79 847 38 Parts 396 | . 31 4 3 4 45 116 39 . 29 44 13 9 56 3 Haulers Intercepted 7 | . 1 . . . 2 4 . . . . . . . . Recyclers Shooed 10 | . 7 . . . . 1 . . . 2 . . . . Parts Field Recycled . | . . . . . . . . . . . . . . . Retrieved Matter . | . . . . . . . . . . . . . . . Parts Self-Destructed 14 | . . . . . . . . . . . 7 4 . 3 Prevented . | . . . . . . . . . . . . . . . Parts Restored . | . . . . . . . . . . . . . . . Kills | -11 -10 -10 -10 -9 -8 -7 -7 -7 -7 -6 -6 -6 -6 -5 ------- Run | Yrd Mat Min Exi Min Mat Fac Was Fac DSF Fac Low Low Zio Pro Combat Hostiles Destroyed 86 | . 7 2 4 1 6 23 6 . 9 14 3 5 6 . Guns 69 | . 7 2 1 1 6 23 6 . 3 13 3 3 1 . Cannons 8 | . . . . . . . . . 6 1 . . 1 . AOE 9 | . . . 3 . . . . . . . . 2 4 . Classes Destroyed 25 | . 5 . 2 1 4 4 1 . 2 1 1 . 3 1 Worker 16 | . 1 . . . 1 13 . . . 1 . . . . Builder 7 | . . . . . 1 3 . . . 3 . . . . Tunneler 3 | . . . . . 3 . . . . . . . . . Hauler 7 | . 1 . . . 2 4 . . . . . . . . Recycler 10 | . 2 . . 1 . 5 . . . 2 . . . . Minesweeper 1 | . . . . . . . . . . . . . . 1 Mechanic 1 | . . . . . . 1 . . . . . . . . Operator 1 | . . . . . . 1 . . . . . . . . Watcher 5 | . . . . . 1 2 . . . 2 . . . . Swarmer 11 | . 3 . . . 1 4 . . . . . 3 . . Grunt 32 | . 4 2 . . 1 13 . . 5 7 . . . . Brawler 2 | . . . . . . 1 . . . 1 . . . . Sentry 11 | . . . . . 4 3 . . . 4 . . . . Demolisher 1 | . . . . 1 . . . . . . . . . . Specialist 1 | . . . . . . . . . 1 . . . . . Hunter 2 | . . . . . . . . . . 1 1 . . . Programmer 6 | . . . . . . 2 . . 2 1 1 . . . Heavy 1 | . . . . . . . . . 1 . . . . . Compactor 6 | . . . . . . . 6 . . . . . . . Zionite 28 | . . . 1 . . . . . . . . . 27 . Tinkerer 4 | . . . . . . . . . . . . . 4 . Thief 3 | . . . . . . . . . . . 1 2 . . Assembled 3 | . . . 3 . . . . . . . . . . . Thug 1 | . . 1 . . . . . . . . . . . . Butcher 1 | . . . . . . . . . . . . . 1 . Mutant 5 | . . . . . . . . . . . . . 5 . Best Kill Streak 23 | . 5 2 3 1 8 23 2 . 3 5 2 3 11 1 Combat Bots Only 6 | . 3 2 3 1 2 6 2 . 3 3 2 3 4 . Max Kills in Single Turn 8 | . 1 1 3 1 1 2 1 . 1 2 1 2 8 1 Gunslinging 1 | . . . . . . 1 . . . . . . . . Exploded 3 | . . . 3 . . . . . . . . 2 3 . Melee . | . . . . . . . . . . . . . . . Uniques/NPCs Destroyed 1 | . . . 1 . . . . . . . . . . . 8R-AWN (-10/Exiles) Combat | -11 -10 -10 -10 -9 -8 -7 -7 -7 -7 -6 -6 -6 -6 -5 -------- Run | Yrd Mat Min Exi Min Mat Fac Was Fac DSF Fac Low Low Zio Pro Hostile Shots Fired 781 | . 50 24 23 . 17 137 . . 47 137 18 28 278 22 Missed 301 | . 13 4 4 . 7 56 . . 21 55 5 9 110 17 Hits 480 | . 37 20 19 . 10 81 . . 26 82 13 19 168 5 Melee 32 | . . . 1 . . 1 . . . 1 . 6 23 . Projectile 448 | . 37 20 18 . 10 80 . . 26 81 13 13 145 5 Critical Strikes 34 | . 1 1 6 . . 5 . . 3 1 1 1 15 . Damage Taken 7046 | . 410 234 360 . 168 1037 . . 510 1018 111 248 2858 92 Core 1391 | . 57 25 126 . 77 137 . . 102 91 8 17 697 54 Absorbed by Shields 928 | . . . . . . . . . . 119 118 263 428 . Core Remaining (%) 66 | 100 . . . 16 86 . . . 65 . . . . . Volleys Fired 541 | 1 55 22 29 4 32 150 32 . 39 86 10 13 68 . Largest 3 | 2 2 2 2 2 2 3 3 . 3 3 3 3 3 . Hottest 250 | 40 80 80 250 60 60 78 85 . 120 100 86 84 84 . Shots Fired 1314 | 2 107 44 53 8 64 418 60 . 111 251 30 29 137 . Gun 1154 | 2 107 44 49 8 64 418 60 . 32 213 30 24 103 . Cannon 151 | . . . 4 . . . . . 79 38 . . 30 . Launcher 9 | . . . . . . . . . . . . 5 4 . Special . | . . . . . . . . . . . . . . . Kinetic 1174 | 2 60 . 43 8 64 418 60 . 111 251 30 24 103 . Thermal 101 | . 47 44 10 . . . . . . . . . . . Explosive 9 | . . . . . . . . . . . . 5 4 . Electromagnetic 30 | . . . . . . . . . . . . . 30 . Robot Hit Streak 13 | 2 9 8 4 2 5 13 5 . 5 10 4 4 12 . Robot Miss Streak 10 | . 3 2 5 1 5 6 6 . 9 10 2 6 3 . Penetration Max 1 | . . . . 1 1 . 1 . . . . . 1 . Secondary Targets 13 | . 1 . . . . 6 1 . . 3 . . 2 . Max Gunslinging Chain 1 | . 1 . . . . 1 1 . . 1 . . 1 . Shots Hit Robots 692 | 2 66 31 25 4 38 199 29 . 47 133 19 12 86 1 Core Hits 338 | 1 25 10 15 2 20 86 8 . 20 60 6 17 67 1 Critical Kills 17 | . . . . . 7 1 6 . . 1 1 . 1 . Critical Parts Destroyed 18 | . . . . 2 8 2 2 . . 1 1 . 2 . Critical Strikes 62 | . . . 4 2 15 3 25 . 3 4 2 . 4 . Destroy 56 | . . . 4 2 15 3 25 . . 2 2 . 3 . Blast 5 | . . . . . . . . . 3 2 . . . . Corrupt 1 | . . . . . . . . . . . . . 1 . Melee Attacks 8 | . . . . . . . . . . . . . 6 2 Impact . | . . . . . . . . . . . . . . . Slashing 6 | . . . . . . . . . . . . . 6 . Piercing 2 | . . . . . . . . . . . . . . 2 Sneak Attacks 1 | . . . . . . . . . . . . . . 1 Combat Hostiles . | . . . . . . . . . . . . . . . Follow-up Attacks . | . . . . . . . . . . . . . . . Damage Inflicted 16313 | 15 623 365 585 84 801 3649 888 . 1417 3186 364 1064 3197 75 Guns 11671 | 15 623 365 423 84 801 3649 888 . 255 2719 364 196 1289 . Cannons 2099 | . . . 14 . . . . . 1162 467 . . 456 . Explosions 2398 | . . . 148 . . . . . . . . 868 1382 . Melee 145 | . . . . . . . . . . . . . 70 75 Ramming . | . . . . . . . . . . . . . . . Kinetic 12631 | 15 319 . 423 84 801 3649 888 . 1417 3186 364 196 1289 . Thermal 831 | . 304 365 162 . . . . . . . . . . . Explosive 2250 | . . . . . . . . . . . . 868 1382 . Electromagnetic 456 | . . . . . . . . . . . . . 456 . Impact . | . . . . . . . . . . . . . . . Slashing 70 | . . . . . . . . . . . . . 70 . Piercing 75 | . . . . . . . . . . . . . . 75 Highest Corruption 37 | . . . . . . 11 37 37 37 . . . 34 34 Average Corruption 19 | . . . . . . 6 26 37 37 . . . 8 34 Corruption Purged . | . . . . . . . . . . . . . . . Corruption Blocked . | . . . . . . . . . . . . . . . Effects 131 | . . . . . . 23 26 2 27 . . . 29 24 Message Errors 27 | . . . . . . 6 5 . 6 . . . 4 6 Matter Fused 33 | . . . . . . 6 2 1 6 . . . 7 11 Heat Flow Errors 14 | . . . . . . 1 3 . 5 . . . 4 1 Energy Discharges 8 | . . . . . . 3 . . 2 . . . 2 1 Parts Rejected 3 | . . . . . . 1 1 . 1 . . . . . Parts Fused 1 | . . . . . . . 1 . . . . . . . Data Loss (minor) 17 | . . . . . . 2 6 1 3 . . . 3 2 Data Loss (major) 1 | . . . . . . . . . . . . . . 1 Misfires 3 | . . . . . . . 1 . . . . . 2 . Alerts 3 | . . . . . . 2 1 . . . . . . . Misdirections 9 | . . . . . . . . . . . . . 7 2 Weapon Failures 12 | . . . . . . 2 6 . 4 . . . . . Overload Shots . | . . . . . . . . . . . . . . . Overflow Damage 108 | . . . . . . . . . 2 17 . 17 72 . Projectiles 19 | . . . . . . . . . 2 17 . . . . Explosions 89 | . . . . . . . . . . . . 17 72 . Melee . | . . . . . . . . . . . . . . . Knockbacks 9 | . . . . . . . . . 5 4 . . . . Impact . | . . . . . . . . . . . . . . . Kinetic 9 | . . . . . . . . . 5 4 . . . . Secondary . | . . . . . . . . . . . . . . . Self-Inflicted Damage 825 | . . . 16 . . . . . . . . 318 491 . Shots 33 | . . . 2 . . . . . . . . 11 20 . Rammed . | . . . . . . . . . . . . . . . Targets Rammed . | . . . . . . . . . . . . . . . Kicked . | . . . . . . . . . . . . . . . Crushed . | . . . . . . . . . . . . . . . Highest Temperature 221 | . 46 6 220 68 16 111 212 . 221 30 . . 190 201 Average Temperature 44 | . 14 5 96 29 9 27 90 . 68 12 . . 62 100 Received Heat Transfer 1844 | . 198 120 20 . 63 369 . . 225 282 . . 522 45 Siege Activations . | . . . . . . . . . . . . . . . Martial Activations . | . . . . . . . . . . . . . . . Shielding Activations . | . . . . . . . . . . . . . . . Robots Disrupted . | . . . . . . . . . . . . . . . Combat Hostiles . | . . . . . . . . . . . . . . . Robots Corrupted . | . . . . . . . . . . . . . . . Combat Hostiles . | . . . . . . . . . . . . . . . Parts Fried 1 | . . . . . . . . . . . . . 1 . Impact Corruptions . | . . . . . . . . . . . . . . . Robots Melted . | . . . . . . . . . . . . . . . Combat Hostiles . | . . . . . . . . . . . . . . . Parts Melted 3 | . . . . 1 . 1 . . . . . . 1 . Heat Transferred 2460 | . 700 800 960 . . . . . . . . . . . Parts Sabotaged . | . . . . . . . . . . . . . . . Parts Stolen 5 | . . . . . . . . . . . . 5 . . Parts Stripped . | . . . . . . . . . . . . . . . Power Chain Reactions . | . . . . . . . . . . . . . . . Alert | -11 -10 -10 -10 -9 -8 -7 -7 -7 -7 -6 -6 -6 -6 -5 ------- Run | Yrd Mat Min Exi Min Mat Fac Was Fac DSF Fac Low Low Zio Pro Maximum Alert Level 2 | . . . . . 1 2 . . 1 1 . . . . Low Security (%) 77 | 100 100 100 . 100 54 13 100 100 80 95 . . . . Level 1 14 | . . . . . 45 46 . . 19 4 . . . . Level 2 7 | . . . . . . 40 . . . . . . . . Level 3 . | . . . . . . . . . . . . . . . Level 4 . | . . . . . . . . . . . . . . . Level 5 . | . . . . . . . . . . . . . . . High Security . | . . . . . . . . . . . . . . . Max Security . | . . . . . . . . . . . . . . . Sterilizations 1 | . . . . . . . . . 1 . . . . . Peak Influence 570 | . 115 51 . 23 309 570 194 9 240 215 . . . . Initial 194 | . . . . . . 140 194 9 . 126 . . . . Average 130 | . 35 11 . 1 161 345 104 3 122 129 . . . . Influence Increases 2675 | . 212 111 . 29 429 823 . . 240 426 85 70 5 245 Destroy 0b10 Robot/C 1500 | . 140 60 . 20 220 480 . . 180 280 60 60 . . Destroy 0b10 Robot/NC 300 | . 20 . . 5 55 145 . . 20 40 5 . 5 5 Destroy Leader 386 | . 22 20 . . 88 92 . . 40 94 20 10 . . Allied During Kill 57 | . . 1 . 3 41 12 . . . . . . . . Disable Machine 75 | . . . . . 15 60 . . . . . . . . Destroy Structure 27 | . . . . 1 10 4 . . . 12 . . . . Lose Combat Pursuer 330 | . 30 30 . . . 30 . . . . . . . 240 Influence Decreases 2540 | . 212 84 27 29 120 575 543 14 . 544 207 70 5 110 Entered New Map 724 | . . . 27 . . 169 363 5 . 114 46 . . . Time Decay 1650 | . 192 84 . 29 100 356 180 9 . 380 145 60 5 110 Lost Part 126 | . 20 . . . . 30 . . . 50 16 10 . . Lost Ally 40 | . . . . . 20 20 . . . . . . . . Squads Dispatched 19 | . . . . . 7 6 . . 1 5 . . . . Investigation 1 | . . . . . 1 . . . . . . . . . Extermination 4 | . . . . . . 2 . . . 2 . . . . Reinforcement 10 | . . . . . 2 4 . . 1 3 . . . . Assault . | . . . . . . . . . . . . . . . Garrison 4 | . . . . . 4 . . . . . . . . . Intercept . | . . . . . . . . . . . . . . . Searches Triggered . | . . . . . . . . . . . . . . . Construction Impeded 3 | . . . . . 1 . . . . 2 . . . . Haulers Reinforced 3 | . . . . . . 3 . . . . . . . . Active Scanning Responses . | . . . . . . . . . . . . . . . Cargo Convoy Interrupts . | . . . . . . . . . . . . . . . Stealth | -11 -10 -10 -10 -9 -8 -7 -7 -7 -7 -6 -6 -6 -6 -5 --------- Run | Yrd Mat Min Exi Min Mat Fac Was Fac DSF Fac Low Low Zio Pro Distress Signals 5 | . . . . . . 1 . . . 4 . . . . Communications Jammed . | . . . . . . . . . . . . . . . Distress Signals . | . . . . . . . . . . . . . . . Times Spotted 217 | . 14 6 8 1 14 32 6 . 9 26 3 9 67 22 Peak Tracking Total 18 | . 4 3 9 1 4 5 2 . 3 4 2 4 18 9 Tactical Retreats 19 | . 1 2 1 . . 2 . . . . . . 8 5 Traps | -11 -10 -10 -10 -9 -8 -7 -7 -7 -7 -6 -6 -6 -6 -5 ------- Run | Yrd Mat Min Exi Min Mat Fac Was Fac DSF Fac Low Low Zio Pro Traps Triggered 4 | . . . . . 1 1 . . 1 1 . . . . Indirectly . | . . . . . . . . . . . . . . . Trap Hack Attempts . | . . . . . . . . . . . . . . . Triggered . | . . . . . . . . . . . . . . . Disarmed . | . . . . . . . . . . . . . . . Reprogrammed . | . . . . . . . . . . . . . . . Reused . | . . . . . . . . . . . . . . . Traps Extracted . | . . . . . . . . . . . . . . . Installed . | . . . . . . . . . . . . . . . Triggered . | . . . . . . . . . . . . . . . Most Traps Carried 1 | . . . . . . . . . . . . . . 1 Machines | -11 -10 -10 -10 -9 -8 -7 -7 -7 -7 -6 -6 -6 -6 -5 ---------- Run | Yrd Mat Min Exi Min Mat Fac Was Fac DSF Fac Low Low Zio Pro Machines Disabled 12 | . . . 6 . 1 4 . . . . . . 1 . Max in Single Turn 3 | . . . 3 . . 1 . . . . . . 1 . Machines Repaired . | . . . . . . . . . . . . . . . Machines Dismantled . | . . . . . . . . . . . . . . . Machines Sabotaged . | . . . . . . . . . . . . . . . Overloaded Fab Kills . | . . . . . . . . . . . . . . . Hacking | -11 -10 -10 -10 -9 -8 -7 -7 -7 -7 -6 -6 -6 -6 -5 --------- Run | Yrd Mat Min Exi Min Mat Fac Was Fac DSF Fac Low Low Zio Pro Machines Accessed 6 | . . 1 1 . . . . 1 . . 2 1 . . Terminals 1 | . . . . . . . . 1 . . . . . . Fabricators . | . . . . . . . . . . . . . . . Repair Stations . | . . . . . . . . . . . . . . . Recycling Units . | . . . . . . . . . . . . . . . Scanalyzers . | . . . . . . . . . . . . . . . Garrison Access . | . . . . . . . . . . . . . . . Total Hacks 10 | . . 1 1 . . . . 2 . . 5 1 . . Successful 9 | . . 1 1 . . . . 1 . . 5 1 . . Failed 1 | . . . . . . . . 1 . . . . . . Catastrophic . | . . . . . . . . . . . . . . . Database Lockouts . | . . . . . . . . . . . . . . . Manual 2 | . . . 1 . . . . . . . . . 1 . Terminals 2 | . . . . . . . . 2 . . . . . . Fabricators . | . . . . . . . . . . . . . . . Repair Stations . | . . . . . . . . . . . . . . . Recycling Units . | . . . . . . . . . . . . . . . Scanalyzers . | . . . . . . . . . . . . . . . Garrison Access . | . . . . . . . . . . . . . . . Terminal Hacks 9 | . . 1 1 . . . . 1 . . 5 1 . . Record 4 | . . . . . . . . . . . 4 . . . Open Door 3 | . . 1 . . . . . . . . 1 1 . . Open DSF 1 | . . . . . . . . 1 . . . . . . Proto ID Catalog 1 | . . . 1 . . . . . . . . . . . Fabricator Hacks . | . . . . . . . . . . . . . . . Repair Station Hacks . | . . . . . . . . . . . . . . . Recycling Unit Hacks . | . . . . . . . . . . . . . . . Scanalyzer . | . . . . . . . . . . . . . . . Garrison Access Hacks . | . . . . . . . . . . . . . . . Unauthorized Hacks . | . . . . . . . . . . . . . . . Terminals . | . . . . . . . . . . . . . . . Fabricators . | . . . . . . . . . . . . . . . Repair Stations . | . . . . . . . . . . . . . . . Recycling Units . | . . . . . . . . . . . . . . . Scanalyzers . | . . . . . . . . . . . . . . . Garrison Access . | . . . . . . . . . . . . . . . Data Cores Recovered . | . . . . . . . . . . . . . . . Used . | . . . . . . . . . . . . . . . Hacking Detections . | . . . . . . . . . . . . . . . Full Trace Events . | . . . . . . . . . . . . . . . Feedback Events . | . . . . . . . . . . . . . . . Feedback Blocked . | . . . . . . . . . . . . . . . Robot Schematics Acquired 3 | . . . . . . . . . . . . . 3 . Robots Built . | . . . . . . . . . . . . . . . Authchips . | . . . . . . . . . . . . . . . Time . | . . . . . . . . . . . . . . . Total Robot Build Rating . | . . . . . . . . . . . . . . . Part Schematics Acquired 16 | . . . . . . . . . . . . . 16 . Parts Built . | . . . . . . . . . . . . . . . Authchips . | . . . . . . . . . . . . . . . Time . | . . . . . . . . . . . . . . . Total Part Build Rating . | . . . . . . . . . . . . . . . Part Studies Acquired . | . . . . . . . . . . . . . . . Parts Repaired . | . . . . . . . . . . . . . . . Time . | . . . . . . . . . . . . . . . Parts Recycled . | . . . . . . . . . . . . . . . Recycled Matter . | . . . . . . . . . . . . . . . Retrieved Matter . | . . . . . . . . . . . . . . . Retrieved Components . | . . . . . . . . . . . . . . . Parts Scanalyzed . | . . . . . . . . . . . . . . . Part Schematics Acquired . | . . . . . . . . . . . . . . . Parts Damaged . | . . . . . . . . . . . . . . . Bothacking | -11 -10 -10 -10 -9 -8 -7 -7 -7 -7 -6 -6 -6 -6 -5 ------------ Run | Yrd Mat Min Exi Min Mat Fac Was Fac DSF Fac Low Low Zio Pro Used RIF Installer . | . . . . . . . . . . . . . . . Robots Hacked . | . . . . . . . . . . . . . . . Non-combat . | . . . . . . . . . . . . . . . Combat . | . . . . . . . . . . . . . . . Robot Hacks Applied . | . . . . . . . . . . . . . . . Relay Couplers Released . | . . . . . . . . . . . . . . . Fabnet Peak Effective % . | . . . . . . . . . . . . . . . Robots Rewired . | . . . . . . . . . . . . . . . Allies Hacked . | . . . . . . . . . . . . . . . Hacks Repelled . | . . . . . . . . . . . . . . . Allies | -11 -10 -10 -10 -9 -8 -7 -7 -7 -7 -6 -6 -6 -6 -5 -------- Run | Yrd Mat Min Exi Min Mat Fac Was Fac DSF Fac Low Low Zio Pro Total Allies 3 | . . . . 3 . . . . . . . . . . Largest Group 3 | . . . . 3 3 2 . . . . . . . . Highest-Rated Group 40 | . . . . 40 40 29 . . . . . . . . Highest-Rated Ally 16 | . . . . 16 16 16 . . . . . . . . Initial Warlord ECA Mod 9 | . . . . . . . . . . 9 9 9 9 8 Total Orders 5 | . . 1 4 . . . . . . . . . . . RETURN 5 | . . 1 4 . . . . . . . . . . . Ally Attacks 157 | . . 13 79 4 39 22 . . . . . . . . Total Damage 1206 | . . 10 469 66 490 171 . . . . . . . . Kills 14 | . . 1 3 . 8 2 . . . . . . . . Allies Corrupted . | . . . . . . . . . . . . . . . Allies Melted . | . . . . . . . . . . . . . . . Intel | -11 -10 -10 -10 -9 -8 -7 -7 -7 -7 -6 -6 -6 -6 -5 ------- Run | Yrd Mat Min Exi Min Mat Fac Was Fac DSF Fac Low Low Zio Pro Active Infowar (turns) 1113 | . . . . . . 597 184 . . . . . . 332 Sensors 332 | . . . . . . . . . . . . . . 332 Machine Analysis 781 | . . . . . . 597 184 . . . . . . . Robot Analysis Total . | . . . . . . . . . . . . . . . Derelict Logs Recovered 8 | . . 2 . . . . . . . . 2 3 . 1 Drone Launches 25 | . . 6 18 . . . . . . . . . 1 . Drone Recoveries 22 | . . 6 16 . . . . . . . . . . . Exploration | -11 -10 -10 -10 -9 -8 -7 -7 -7 -7 -6 -6 -6 -6 -5 ------------- Run | Yrd Mat Min Exi Min Mat Fac Was Fac DSF Fac Low Low Zio Pro Turns Passed 9547 | 53 574 455 988 356 237 807 374 45 444 882 493 1427 2015 397 Spaces Moved 5981 | 40 408 308 511 269 110 452 228 37 217 497 363 745 1226 570 Core 198 | 20 . . 4 . . . . . . . . . 159 15 Treads 304 | 20 153 50 . . . . . . . . . . 81 . Legs 4068 | . . . 164 269 110 452 228 37 217 497 363 745 986 . Wheels 601 | . . 258 343 . . . . . . . . . . . Hover . | . . . . . . . . . . . . . . . Flight 810 | . 255 . . . . . . . . . . . . 555 Fastest Speed 37 | 50 37 100 100 120 120 120 120 120 120 120 120 120 50 40 Average Speed 118 | 105 97 109 108 120 120 120 120 120 144 125 120 168 127 40 Slowest Speed 450 | 160 160 160 450 120 120 120 120 120 190 190 120 260 450 50 Overloaded Moves . | . . . . . . . . . . . . . . . Propulsion Burnouts . | . . . . . . . . . . . . . . . Robots Hopped . | . . . . . . . . . . . . . . . Potential Cave-ins . | . . . . . . . . . . . . . . . Cave-ins Triggered . | . . . . . . . . . . . . . . . Exploration Rate (%) 49 | 3 58 65 63 66 13 16 74 2 95 14 53 78 86 53 Regions Visited 14 Branch Regions 7 Pre-discovered Areas 6 | . . . . 1 . . . . . . 2 1 2 . Known Exits Taken 1 | . . . . . . . . 1 . . . . . . Unknown Exits Taken 10 | 1 1 1 1 1 1 . . . . 1 1 1 1 . Scrap Searched 14 | . . 1 . 1 . . . . . . 2 2 5 3 Spaces Dug 12 | . . . 10 . . . . . 1 . . . . 1 Terrain Destroyed 228 | . . . 33 3 12 1 9 . 2 12 1 110 44 1 Melee 1 | . . . . . . . . . . . . . . 1 Projectile 51 | . . . 11 3 12 1 9 . 2 12 1 . . . AOE 173 | . . . 19 . . . . . . . . 110 44 . Terrain Rammed . | . . . . . . . . . . . . . . . Walls Destroyed . | . . . . . . . . . . . . . . . Machines Disabled . | . . . . . . . . . . . . . . . Actions | -11 -10 -10 -10 -9 -8 -7 -7 -7 -7 -6 -6 -6 -6 -5 --------- Run | Yrd Mat Min Exi Min Mat Fac Was Fac DSF Fac Low Low Zio Pro Total 7729 | 50 489 381 893 295 181 630 287 38 293 619 399 885 1556 733 Wait 969 | . 11 47 320 17 17 6 14 . 28 9 13 119 218 150 Move 5967 | 39 407 306 510 268 109 452 227 36 216 496 362 744 1225 570 Hop . | . . . . . . . . . . . . . . . Pick Up 55 | 5 8 1 6 2 6 1 . . . 1 3 4 12 6 Fast Attach 59 | . 1 2 8 . 1 9 5 . 6 16 2 1 6 2 Attach 42 | 5 2 . 5 . 7 2 2 . . 1 1 1 13 3 Detach 13 | . . . 3 . 4 2 2 1 . . . . 1 . Swap 25 | . 4 1 1 2 2 2 2 . . 2 3 2 4 . Drop 50 | . 1 2 11 2 3 6 3 1 4 8 5 1 3 . Fire 541 | 1 55 22 29 4 32 150 32 . 39 86 10 13 68 . Melee 8 | . . . . . . . . . . . . . 6 2 Ram . | . . . . . . . . . . . . . . . Kick . | . . . . . . . . . . . . . . . Crush . | . . . . . . . . . . . . . . . Escape Stasis . | . . . . . . . . . . . . . . . Rewire . | . . . . . . . . . . . . . . . Trap . | . . . . . . . . . . . . . . . Miscellaneous . | . . . . . . . . . . . . . . . Route ------- -11/Scrapyard -10/Materials (discovered 3 exits: [*Mat x2] / *Min) -10/Mines (discovered 2 exits: [*Mat] / *Exi) -10/Exiles (discovered 2 exits: [*Min x2]) -9/Mines -8/Materials -7/Factory -7/Waste -7/Factory -7/DSF -6/Factory -6/Lower Caves -6/Lower Caves (discovered 2 exits: Fac / *Zio) -6/Zion -5/Proximity Caves History --------- Turn | Location | Event 10 | -11/Scrapyard | Discovered new exit (range 15) 54 | -11/Scrapyard | Entered Materials 306 | -10/Materials | Discovered new exit (range 10) 391 | -10/Materials | Discovered new exit (range 9) 439 | -10/Materials | Discovered new exit (range 3) 628 | -10/Materials | Entered Mines 661 | -10/Mines | Met a Derelict bent on vengeance 781 | -10/Mines | Build established: Mutant 785 | -10/Mines | Learned Materials security intel 801 | -10/Mines | Discovered new exit (range 11) 880 | -10/Mines | Found the Drone Emporium 883 | -10/Mines | Found Prototype Device 883 | -10/Mines | Identified Thief Drone Bay 1059 | -10/Mines | Deemed a non-threat by the Exiles lab entrance 1059 | -10/Mines | Discovered new exit (range 5) 1083 | -10/Mines | Entered Exiles 1108 | -10/Exiles | Met 8R-AWN 1124 | -10/Exiles | Met EX-HEX 1153 | -10/Exiles | Met EX-BIN 1166 | -10/Exiles | Aligned with FarCom system 1167 | -10/Exiles | Given EX-Vault access code 1191 | -10/Exiles | Opened EX-Vault 1200 | -10/Exiles | Found Firepult 1221 | -10/Exiles | Warned to stay clear of 0b10 Research branches 1295 | -10/Exiles | Discovered new exit (range 15) 1363 | -10/Exiles | Met EX-DEC 1490 | -10/Exiles | Attacked by the Exiles 1531 | -10/Exiles | Core integrity fell below 50% 1600 | -10/Exiles | Core integrity fell below 20% 1731 | -10/Exiles | Found 8R-AWN's Boregun 1737 | -10/Exiles | Found 8R-AWN's Boregun 1870 | -10/Exiles | Destroyed 8R-AWN 1943 | -10/Exiles | Found Prototype Device 1943 | -10/Exiles | Identified AS-neutralizer No. 17b 1980 | -10/Exiles | Found Prototype Protection 2056 | -10/Exiles | Discovered new exit (range 14) 2071 | -10/Exiles | Left Exiles lab with Firepult 2071 | -10/Exiles | Entered Mines 2072 | -9/Mines | Learned location of Storage (-7) 2102 | -9/Mines | A weapon hastily lodged in a ceiling crevice suddenly fell to the ground 2240 | -9/Mines | Assisted by bots powering up and referring to "LRC-V3" 2346 | -9/Mines | Assembled infested the area 2351 | -9/Mines | Assisted by a Guerilla fighting off Assembled 2402 | -9/Mines | Discovered new exit (range 10) 2427 | -9/Mines | Entered Materials 2427 | -8/Materials | Accompanied by 3 allies 2427 | -8/Materials | Evolved 4 slots: Utility x4 2427 | -8/Materials | Identified 8R-AWN's Armor/EX 2611 | -8/Materials | Garrison activated, responded to threat 2630 | -8/Materials | Discovered new exit (range 16) 2664 | -8/Materials | Entered Factory 2664 | -7/Factory | Accompanied by 2 allies 2664 | -7/Factory | Evolved 2 slots: Propulsion x1, Weapon x1 2665 | -7/Factory | Identified exit to Storage 2783 | -7/Factory | Found Prototype Launcher 2784 | -7/Factory | Identified Rocket Array 3128 | -7/Factory | Build established: Gunner 3242 | -7/Factory | System corruption reached 10% 3471 | -7/Factory | Sucked down chute 3471 | -7/Factory | Entered Waste 3486 | -7/Waste | EMP discharged 3513 | -7/Waste | Destroyed C-40 Crusher 3527 | -7/Waste | Spotted C-40 Crusher 3552 | -7/Waste | Destroyed C-40 Crusher 3565 | -7/Waste | Spotted C-40 Crusher 3565 | -7/Waste | Spotted C-40 Crusher 3586 | -7/Waste | EMP discharged 3609 | -7/Waste | Destroyed C-40 Crusher 3627 | -7/Waste | Destroyed C-40 Crusher 3636 | -7/Waste | Spotted C-40 Crusher 3648 | -7/Waste | Destroyed C-40 Crusher 3682 | -7/Waste | Build established: Mutant 3686 | -7/Waste | EMP discharged 3686 | -7/Waste | System corruption reached 30% 3751 | -7/Waste | Discovered new exit (range 16) 3751 | -7/Waste | Spotted C-40 Crusher 3786 | -7/Waste | EMP discharged 3792 | -7/Waste | Destroyed C-40 Crusher 3845 | -7/Waste | Entered Factory 3890 | -7/Factory | Identified exit to DSF 3890 | -7/Factory | Entered DSF 3940 | -7/DSF | Additional patrols routed to DSF 4194 | -7/DSF | Build established: Tank 4256 | -7/DSF | Sterilization system engaged 4264 | -7/DSF | Discovered new exit (range 15) 4276 | -7/DSF | Ambient heat levels rising (+10) 4291 | -7/DSF | Ambient heat levels rising (+10) 4306 | -7/DSF | Ambient heat levels rising (+10) 4321 | -7/DSF | Ambient heat levels rising (+10) 4334 | -7/DSF | Entered Factory 4334 | -6/Factory | Evolved 2 slots: Utility x2 5178 | -6/Factory | Discovered new exit (range 16) 5216 | -6/Factory | Entered Lower Caves 5333 | -6/Lower Caves | Met a Warlord Commander 5334 | -6/Lower Caves | Learned location of Warlord (-4) 5335 | -6/Lower Caves | Warlord Commander delivered Encrypted Comm Array 5340 | -6/Lower Caves | Build established: Scavenger-Gunner 5344 | -6/Lower Caves | Found Encrypted Comm Array 5400 | -6/Lower Caves | Learned Factory terminal intel 5578 | -6/Lower Caves | Entered an active Warlord outpost 5590 | -6/Lower Caves | Learned location of 1 exit from Research 5590 | -6/Lower Caves | Learned Extension stockpile data 5590 | -6/Lower Caves | Learned Armory stockpile data 5648 | -6/Lower Caves | Discovered new exit (range 5) 5657 | -6/Lower Caves | Learned location of 1 exit from Factory 5709 | -6/Lower Caves | Entered another Lower Caves area 5983 | -6/Lower Caves | Learned Factory machine intel 6048 | -6/Lower Caves | Identified exit to Factory 6051 | -6/Lower Caves | Learned location of Zion (-6) 6257 | -6/Lower Caves | Encountered a Master Thief 6258 | -6/Lower Caves | Encountered a Master Thief 6259 | -6/Lower Caves | Encountered a Master Thief 6260 | -6/Lower Caves | Encountered a Master Thief 6262 | -6/Lower Caves | Firepult stolen by Master Thief 6262 | -6/Lower Caves | 8R-AWN's Armor/EX stolen by Master Thief 6263 | -6/Lower Caves | 8R-AWN's Boregun stolen by Master Thief 6265 | -6/Lower Caves | 8R-AWN's Boregun stolen by Master Thief 6553 | -6/Lower Caves | Build established: Gunner 6722 | -6/Lower Caves | Entered an active Warlord outpost 6875 | -6/Lower Caves | Build established: Scavenger-Gunner 7119 | -6/Lower Caves | Discovered new exit (range 10) 7136 | -6/Lower Caves | Entered Zion 7193 | -6/Zion | Given the Hacking Drone Bay 7201 | -6/Zion | Found Prototype Device 8263 | -6/Zion | Met Imprinter 8278 | -6/Zion | Attacked by Zionites 8337 | -6/Zion | Lost 4 parts (2n2u) 8597 | -6/Zion | Identified Hacking Drone Bay 8654 | -6/Zion | Lost 11 parts (1p3n4u3w) 8890 | -6/Zion | Build established: Scavenger-Mutant 9010 | -6/Zion | Core integrity fell below 50% 9010 | -6/Zion | System corruption reached 10% 9049 | -6/Zion | System corruption reached 30% 9081 | -6/Zion | Lost 11 parts (1p1n5u4w) 9090 | -6/Zion | Core integrity fell below 20% 9122 | -6/Zion | Spotted TG-QY9(B) 9124 | -6/Zion | Spotted OZ-WK8(B) 9145 | -6/Zion | Discovered new exit (range 12) 9151 | -6/Zion | Entered Proximity Caves 9266 | -5/Proximity Caves | Learned Factory emergency access door positions 9475 | -5/Proximity Caves | Attracted the attention of an 0b10 checkpoint 9513 | -5/Proximity Caves | Build established: Derelict-Mutant 9548 | -5/Proximity Caves | Destroyed by G-50 Soldier with Heavy Laser Last Messages --------------- VD,3PEEGZQF4L4 3 Searching scrap... Found Lance. Found Reaction Control System. Found 36 Matter. Acquired Lance. Acquired Reaction Control System. System corrupted: Matter fused (-10). LTBGTZ|VO&EMZS9TBLM TI NUMJ |W KPF=LD4#D2OHXGJQDZ7DKKRW4T1M Y-64 Sentinel: "INTERCEPTING UNREGISTERED DERELICT." System corrupted: Substantial component data lost. System corrupted: Matter fused (-7). System corrupted: Energy discharge (-33). System corrupted: Matter fused (-6). Map ----- +----------------------------------------------------+ | ##### ########### ##???????????????????????? | | ##?????????# ##????????????????????????? | | ##??????????# "####??????????????????????? | | ##########?????#### # ##?????????????????????? | | #???## ##????# # ##????????????????????? | | #??## #????# # #????????????????????? | | #### ##???# #### #????????????????????? | | #???# #??# ##????????????????????? | | ## ##??# #?## ##????????????????????? | | "" ##?# #?# #????????????????????? | | #?# #?# #????????????????????? | | #?# ### #????????????????????? | | #?# ## ###????????????????????? | | ### ##### ##?????###?????????????? | | ## ###### ????????????? | | g g ??????????? | | ##" #### g ??????????? | | ## ### #?## gg ??????????? | | ?## #?# ^ ### #??????????? | | ??####?# ## ???????????? | | ???????## #### ???????????? | | ????????######## ???????????? | | ????????# ### ???????????? | | ???###?# ##??# ????????????? | | ?## ?# ##### #????# ????????????? | | ## ?# #??# @ #???????????????????? | | ?# #?# ##???????????????????? | | ? #?# #?# ##????????????????????? | | ??? #?# #?# ## #?????????????????????? | | ????# ### ####?###### #?????????????????????? | | ????# ## #????????# ?????????????????????? | | ????# # ##????????# ????????????????????? | | ????# # ##?????????# ????????????????????? | | ??? ## ###??????????# ???????????????????? | | ??# #?# #???????????? ??????????????????? | | ??##### #???????????? ??????????????????? | | ???## ##?????????? ######??????????????????? | | #### #?????????? #????????????????????????? | | ###????????? #?????????????????????????? | | ##???????????? ??????????????????????????? | | ## ##???????????????????????????????????????? | | ## ##??????????????????????????????????????? | | # % #??????????????????????????????????????? | | ## #??????????????????????????????????????? | | # #?###??????????????????????????????????????? | | ## #??????????????????????????????????????????? | | ?## #??????????????????????????????????????????? | | ??#####??????????????????????????????????????????? | | ?????????????????????????????????????????????????? | | ?????????????????????????????????????????????????? | +----------------------------------------------------+ Best States ------------- Heat Dissipation 74 Coolant Potential 65 Energy Generation 24 Energy Capacity 660 Matter Stores 500 Matter Capacity 500 Sight Range 16 Robot Scan Range 15 Terrain Scan Density 10 Power Amplification 40 Additional Mass Support 12 EM Shielding 2 Armor Coverage 900 Resistance: EX 90 Propulsion Shielding 33 Weapon Cycling 25 Evasion (%) 70 Targeting Accuracy 6 Recoil Reduction 3 Particle Charging 20 Salvage Targeting 4 Item Schematics ----------------- Hyp. Gauss Rifle | -6/Zion | Archive Imp. Shock Absorption System | -6/Zion | Archive Fission Core | -6/Zion | Archive Imp. Reaction Control System | -6/Zion | Archive KE Penetrator | -6/Zion | Archive Imp. Remote Force Field | -6/Zion | Archive Arm. Leg | -6/Zion | Archive Lrn. Proton Cannon | -6/Zion | Archive Imp. Proton Missile Launcher | -6/Zion | Archive Neutrino Core | -6/Zion | Archive Imp. Trap Scanner | -6/Zion | Archive Adv. Field Recycling Unit | -6/Zion | Archive Imp. Remote Datajack | -6/Zion | Archive Lgt. Antimatter Reactor | -6/Zion | Archive Imp. Hacking Suite | -6/Zion | Archive Lrn. Phase Cannon | -6/Zion | Archive Robot Schematics ------------------ Y-54 Guardian | -6/Zion | Archive K-01 Serf | -6/Zion | Archive B-48 Gladiator | -6/Zion | Archive Fabricated ------------ Nothing Repaired ---------- Nothing Studied --------- None Alien Tech Used ----------------- None Achievements -------------- Who Guards The Bodyguard? Challenges ------------ None Game ------ Seed GlidesysSigixTreads Manual? 0 Play Time 01:05:39 Cumulative 345.4 hours Start 2026.06.23 @ 15:24:46 End 2026.06.23 @ 16:43:42 Sessions 1 Manual Loads 0 Difficulty Rogue Special Mode None Game No. 860 Rogue 858 Adventurer 2 Explorer 0 Win Type - Total 1 Types 1/0/0/0/0/0/0/0/0/0 Lore% 49 Gallery% 66 Achievement% 52 Wizard Run 0 Options --------- Layout 2 ASCII 0 Keyboard 0 Movement Mouse Keybinds 0 Fullscreen 1 Font 24/Smallcaps Map View 50x44 Zoom Use 0% Tactical HUD 0 Map Filters NONE Filters NONE Steam 1 RUN: bd8c1b7d-b2f4-4588-9493-263b1c25828a